[Event "44th Chess Olympiad Open 2022"]
[Site "Chennai"]
[Date "2022.08.02"]
[Round "5.6"]
[White "Mamedyarov, Shakhriyar"]
[Black "Quesada Perez, Yasser"]
[Result "1-0"]
[WhiteElo "2759"]
[BlackElo "2568"]
[Annotator "TA"]
[PlyCount "125"]
[EventDate "2022.??.??"]
[TimeControl "60"]

{[%evp 9,125,0,0,0,0,11,15,0,14,0,-11,-22,24,5,15,11,43,40,61,52,48,37,50,8,43,
43,86,23,37,39,38,24,58,62,43,52,54,56,102,103,89,80,92,67,83,76,89,67,105,87,
76,75,73,72,71,76,75,75,75,74,66,68,58,71,105,89,108,104,104,110,120,138,138,
138,138,138,138,127,242,242,276,265,283,275,274,267,231,229,5614,2204,9345,
11591,3440,8304,2353,2007,2308,11029,11275,5443,6103,5590,29963,29964,29967,
29969,29964,29952,12841,12849,12583,29940,6544,2675,29977,29978,5314,4310]} 1.
c4 {[%emt 0:00:10]} e5 {[%emt 0:00:35][%cal Ye7e5,Ye5e4]} 2. Nf3 {[%emt 0:00:
08]} e4 {[%emt 0:01:12]} 3. Nd4 {[%emt 0:00:06]} Nc6 {[%emt 0:00:33]} 4. e3 {
[%emt 0:00:11]} Nf6 {[%emt 0:00:34]} 5. Nc3 {[%emt 0:00:14]} Bb4 {[%emt 0:03:
49]} 6. Qb3 {[%emt 0:00:52] Black must now prevent Nxc6. A20: English Opening:
1...e5.} Bc5 {[%emt 0:03:29] 6...a5 gains popularity.} 7. Nde2 {[%emt 0:04:21]}
O-O {[%emt 0:01:30]} 8. Ng3 {[%emt 0:00:02] The position is equal.} Re8 {
[%emt 0:00:25] [#]} 9. d3 $146 {[%emt 0:04:52]} ({Predecessor:} 9. a3 Bd6 10.
Qc2 Bxg3 11. hxg3 d6 12. b3 h6 13. Bb2 Bg4 14. Rh4 Qd7 15. Nxe4 Nxe4 {½-½ 
(60) Cardoso,S (2228)-Depasse,J (2377) LSS email 2019}) 9... exd3 {[%emt 0:10:
11]} 10. Bxd3 {[%emt 0:00:02]} Ng4 {[%emt 0:01:33]} (10... b6 $142) 11. Be2 {
[%emt 0:07:09]} (11. h3 $5 {[%cal Rh3g4]} Nf6 12. O-O $11) 11... d6 {[%emt 0:
01:21]} 12. Bd2 {[%emt 0:02:06]} Bb6 {[%emt 0:16:13]} 13. Nd5 {[%emt 0:00:00]}
Ne7 {[%emt 0:03:45]} 14. Nxb6 {[%emt 0:11:53]} axb6 {[%emt 0:00:04]} 15. h3 {
[%emt 0:02:37]} Ne5 {[%emt 0:00:35]} 16. e4 {[%emt 0:05:13] Against Nf5} N7c6 {
[%emt 0:03:03]} 17. Qc3 {[%emt 0:03:00] Inhibits Nd4.} Qf6 {[%emt 0:00:00]} 18.
a3 {[%emt 0:08:07]} ({Better is} 18. Nh5 $16 Qh4 19. O-O Qxe4 20. Rfe1) 18...
Nd7 {[%emt 0:02:55]} 19. Qxf6 {[%emt 0:02:35]} (19. b4 {looks sharper.} g6 20.
O-O h5 21. Rfe1) 19... Nxf6 {[%emt 0:00:01]} 20. f3 {[%emt 0:00:04]} Be6 {
[%emt 0:01:30]} 21. Bc3 {[%emt 0:01:30] Against Nd4} Nd7 {[%emt 0:04:05]} 22.
Nh5 {[%emt 0:00:12][%cal Yg3h5,Yh5f4,Yf4d5]} f6 {[%emt 0:00:06]} 23. Nf4 {
[%emt 0:00:05]} Bf7 {[%emt 0:00:47]} (23... Nc5 $14 {is more appropriate.}) 24.
Nd5 $16 {[%emt 0:01:04]} Rac8 {[%emt 0:00:03]} 25. Kf2 {[%emt 0:01:06]} Ne7 {
[%emt 0:03:36]} 26. Ne3 {[%emt 0:01:17] White is much more active.} Nc5 {
[%emt 0:04:05]} 27. b4 {[%emt 0:02:28]} Na4 {[%emt 0:01:12]} 28. Bd2 {[%emt 0:
00:00]} c6 {[%emt 0:00:29]} 29. Rac1 {[%emt 0:03:25]} Red8 {[%emt 0:00:36]} 30.
Rc2 {[%emt 0:15:18]} d5 {[%emt 0:00:50]} 31. cxd5 {[%emt 0:02:23]} cxd5 {
[%emt 0:00:03] Strongly threatening ...d4.} 32. Rxc8 {[%emt 0:00:02]} Rxc8 {
[%emt 0:00:04]} 33. Bb5 {[%emt 0:00:03]} Be8 {[%emt 0:03:35]} 34. Bxe8 {
[%emt 0:06:41]} Rxe8 {[%emt 0:00:00]} 35. exd5 {[%emt 0:00:59]} Rd8 {[%emt 0:
00:00]} 36. Rc1 {[%emt 0:04:12]} Nxd5 {[%emt 0:00:14] White stays focused
until the end.} 37. Nxd5 {[%emt 0:01:51]} Rxd5 {[%emt 0:00:04] Endgame KRB-KRN}
38. Rc8+ {[%emt 0:00:02]} Kf7 {[%emt 0:00:06]} 39. Rc7+ {[%emt 0:00:01]} Ke6 {
[%emt 0:00:06]} 40. Be3 {[%emt 0:00:09]} Rd7 {[%emt 0:00:00]} 41. Rxd7 {
[%emt 0:30:03]} Kxd7 {[%emt 0:30:06] KB-KN} 42. Bd4 $1 {[%emt 0:00:00]} Ke6 {
[%emt 0:04:37]} 43. Ke3 {[%emt 0:00:00]} Kf5 {[%emt 0:00:08]} (43... Kd5 $16)
44. g4+ $18 {[%emt 0:00:00]} Kg5 {[%emt 0:01:01]} 45. Kf2 $1 {[%emt 0:00:00]}
Kf4 {[%emt 0:11:02]} 46. h4 $1 {[%emt 0:00:00]} b5 {[%emt 0:00:00]} 47. Kg2 $1
{[%emt 0:00:00]} g6 {[%emt 0:00:32] [#]} 48. Kf2 $1 {[%emt 0:00:00]} ({Don't
take} 48. Bxf6 $6 Nb6 $16) 48... h5 $2 {[%emt 0:01:04]} (48... g5 49. h5 (49.
Bxf6 gxh4 50. Bd4 Kg5 $16) 49... f5) 49. gxh5 {[%emt 0:00:00]} gxh5 {[%emt 0:
00:03] [#]} 50. Kg2 $1 {[%emt 0:00:00]} Kf5 {[%emt 0:06:05]} 51. Kg3 {[%emt 0:
00:00]} Ke6 {[%emt 0:00:46]} 52. Kf4 {[%emt 0:00:00]} Kd5 {[%emt 0:00:11]} 53.
Bxf6 {[%emt 0:00:00]} Nb6 {[%emt 0:00:03]} 54. Kg5 {[%emt 0:00:00]} Ke6 {
[%emt 0:00:30]} 55. f4 {[%emt 0:00:00][%cal Yf3f4,Yf4f5]} Nd5 {[%emt 0:00:05]}
56. f5+ {[%emt 0:00:00]} Kf7 {[%emt 0:00:00]} 57. Bd4 {[%emt 0:00:00]} Ne7 {
[%emt 0:00:13]} 58. Bb2 {[%emt 0:00:00]} Kf8 {[%emt 0:02:47]} 59. Bf6 {[%emt 0:
00:00] White threatens Bxe7+ and mate.} Nc8 {[%emt 0:00:49]} 60. Kxh5 {[%emt 0:
00:00]} Kf7 {[%emt 0:00:04]} 61. Kg5 {[%emt 0:00:16]} (61. Bd4 $142 Nd6 62. Kg5
Ne4+ 63. Kf4) 61... Nd6 {[%emt 0:00:00]} 62. Bd4 {[%emt 0:00:16]} Ne4+ {
[%emt 0:01:02]} 63. Kf4 {[%emt 0:00:14] Weighted Error Value: White=0.06 
(flawless) /Black=0.47} 1-0

[Event "44th Chess Olympiad Open 2022"]
[Site "Chennai"]
[Date "2022.08.02"]
[Round "5.6"]
[White "Durarbayli, Vasif"]
[Black "Quesada Perez, Luis Ernesto"]
[Result "0-1"]
[WhiteElo "2638"]
[BlackElo "2549"]
[Annotator "TA"]
[PlyCount "114"]
[EventDate "2022.??.??"]
[TimeControl "60"]

{[%evp 18,114,14,14,0,0,0,0,0,0,0,0,0,0,0,-32,-25,-41,-37,-42,-29,-50,-46,-49,
-38,-93,-50,-58,-46,-58,-39,-38,-39,-64,-64,-74,-69,-77,-66,-70,-77,-139,-134,
-132,-129,-131,-131,-131,-131,-161,-165,-137,-148,-215,-225,-199,-225,-390,
-403,-400,-363,-402,-390,-411,-400,-404,-383,-447,-416,-377,-376,-375,-358,
-364,-336,-380,-394,-391,-400,-379,-388,-420,-374,-439,-439,-415,-384,-375,
-335,-380,-375,-6785,-6785,-6504,-6240,-6087,-5828,-941,-900]} 1. e4 {[%emt 0:
00:00]} c5 {[%emt 0:01:49]} 2. Nf3 {[%emt 0:00:14]} d6 {[%emt 0:00:09]} 3. d4 {
[%emt 0:00:14]} cxd4 {[%emt 0:00:06]} 4. Nxd4 {[%emt 0:00:07]} Nf6 {[%emt 0:00:
00]} 5. Nc3 {[%emt 0:00:05]} a6 {[%emt 0:00:04]} 6. Be3 {[%emt 0:00:08]} e5 {
[%emt 0:00:53]} 7. Nf3 {[%emt 0:03:00]} Be7 {[%emt 0:00:07]} 8. Bc4 {[%emt 0:
00:00]} O-O {[%emt 0:01:02]} 9. O-O {[%emt 0:00:25]} Nc6 {[%emt 0:06:39]} 10.
Qe2 {[%emt 0:05:48]} Na5 {[%emt 0:01:53] B90: Sicilian Najdorf: Unusual White
6th moves, 6 Be3 Ng4 and 6 Be3 e5.} 11. Bd5 {[%emt 0:03:15]} Be6 {[%emt 0:00:
00]} 12. Rfd1 {[%emt 0:06:01][%cal Yf3e5]} Qc7 {[%emt 0:01:57] [#] The
position is equal.} 13. Rac1 $146 {[%emt 0:18:58]} ({Predecessor:} 13. Bg5 Bxd5
14. Rxd5 Nc4 15. Bxf6 Bxf6 16. Rd3 Rfc8 17. Nd5 Qd8 18. Rb3 b5 19. a4 {1-0 (36)
Naiditsch,A (2653)-Moussard,J (2668) Chartres 2022}) 13... h6 {[%emt 0:32:09]}
14. Nd2 {[%emt 0:04:51]} Rac8 {[%emt 0:00:46]} 15. a4 {[%emt 0:08:28]} Qd7 {
[%emt 0:09:01]} 16. Bb6 {[%emt 0:07:07] Hoping for Bxe6.} Bd8 $1 {[%emt 0:00:
00]} 17. Bxe6 {[%emt 0:10:29]} fxe6 {[%emt 0:03:48]} 18. Bxd8 {[%emt 0:08:11]}
Rfxd8 {[%emt 0:02:03][%cal Yf8d8,Yd8d7,Yd7c7,Yc7c4,Yc4b4]} 19. Rb1 {[%emt 0:01:
28]} Qc6 {[%emt 0:00:55]} 20. h3 {[%emt 0:02:37]} Rd7 {[%emt 0:00:00]} 21. Nf3
{[%emt 0:01:34]} ({White should play} 21. Qe3 $15) 21... Qb6 {[%emt 0:03:25]}
22. Rd3 {[%emt 0:02:43]} Rdc7 {[%emt 0:01:50][%cal Yc7c3] aiming for ...Rxc3!}
23. Nd2 {[%emt 0:02:37][%cal Yb2b4]} Nc4 {[%emt 0:01:49]} 24. Nxc4 {[%emt 0:06:
16]} Rxc4 {[%emt 0:00:07]} 25. Qe3 {[%emt 0:01:29]} Qxe3 {[%emt 0:05:30]} (
25... Qb4 {is interesting.} 26. Qd2 R8c6 27. f3 Nd7) 26. Rxe3 {[%emt 0:00:04]}
Kf7 {[%emt 0:00:20]} 27. Kf1 {[%emt 0:01:08]} Ke7 {[%emt 0:00:00]} 28. Rd1 {
[%emt 0:01:12]} Rb4 {[%emt 0:00:44] White is now going downhill.} 29. b3 {
[%emt 0:01:35] [#]} (29. Rb1 $142) 29... Rb6 $1 $17 {[%emt 0:02:14]} 30. Rdd3 {
[%emt 0:01:17]} Rbc6 {[%emt 0:01:05]} 31. Ke1 {[%emt 0:00:47]} g5 {[%emt 0:00:
34][%cal Yg7g5,Yg5g4]} 32. Kd2 {[%emt 0:00:55]} h5 {[%emt 0:05:42][%cal Yh6h5,
Yh5h4] Inhibits g4.} 33. g3 {[%emt 0:01:11] [#]} h4 $1 {[%emt 0:00:47] And now
...g4 would win.} 34. Ke1 {[%emt 0:00:47]} Rc5 {[%emt 0:00:19]} 35. Kf1 {
[%emt 0:01:12]} (35. Kd1 $17) 35... hxg3 $19 {[%emt 0:02:38]} 36. fxg3 {
[%emt 0:00:11]} g4 {[%emt 0:00:08]} 37. Kg2 {[%emt 0:00:00]} (37. h4 {only
move.}) 37... b5 {[%emt 0:00:32]} 38. axb5 {[%emt 0:00:00]} axb5 {[%emt 0:00:
02]} 39. b4 {[%emt 0:00:40]} Rc4 {[%emt 0:00:07]} 40. hxg4 {[%emt 0:00:32]}
Nxg4 {[%emt 0:00:12]} 41. Rf3 {[%emt 0:03:21]} Rxb4 {[%emt 0:00:18]} 42. Rd2 {
[%emt 0:03:53]} Rb2 {[%emt 0:01:01]} 43. Rfd3 {[%emt 0:04:33]} Rc6 {[%emt 0:03:
51]} ({Not} 43... b4 $2 44. Nd1 Rbxc2 45. Kf3 Rxd2 46. Rxd2 $19) 44. Kf3 {
[%emt 0:01:01]} Nf6 {[%emt 0:00:40]} 45. g4 {[%emt 0:00:40]} Nh7 {[%emt 0:02:
57]} 46. Ke3 {[%emt 0:03:24]} Ng5 {[%emt 0:00:00]} 47. Ne2 {[%emt 0:00:44]} Rb4
{[%emt 0:09:34]} 48. Ng3 {[%emt 0:02:00]} Rbc4 {[%emt 0:00:07]} 49. Rb3 {
[%emt 0:02:29]} b4 {[%emt 0:07:53]} 50. Rdd3 {[%emt 0:00:27]} Rc8 {[%emt 0:01:
10]} 51. Rb2 {[%emt 0:02:29]} Rf8 {[%emt 0:00:00]} 52. Ra2 {[%emt 0:00:27]} Rc7
{[%emt 0:00:53]} 53. Rb2 {[%emt 0:04:03]} Rf4 {[%emt 0:00:17]} 54. Rxb4 $2 {
[%emt 0:00:59]} (54. Kd2 Rf2+ 55. Kd1) 54... Rxc2 {[%emt 0:00:19][%csl Gg5]
[%cal Rf4f3] Black is clearly winning.} 55. Rb7+ {[%emt 0:00:03]} Kf8 {[%emt 0:
00:48][%csl Gg5][%cal Rf4f3]} 56. Rb8+ {[%emt 0:00:00]} Kf7 {[%emt 0:00:11]
[%csl Gg5][%cal Rf4f3]} 57. Rb7+ {[%emt 0:00:10]} Kg6 {[%emt 0:07:49] Weighted
Error Value: White=0.31/Black=0.03 (flawless)} 0-1

[Event "44th Chess Olympiad Open 2022"]
[Site "Chennai"]
[Date "2022.08.02"]
[Round "5.6"]
[White "Albornoz Cabrera, Carlos Daniel"]
[Black "Mamedov, Rauf"]
[Result "1-0"]
[WhiteElo "2566"]
[BlackElo "2656"]
[Annotator "TA"]
[PlyCount "75"]
[EventDate "2022.??.??"]
[TimeControl "60"]

{[%evp 19,75,6,13,0,0,0,14,25,18,16,18,16,28,13,81,79,66,67,85,48,55,50,85,85,
85,82,76,83,95,91,79,89,77,56,68,68,194,168,189,191,207,200,201,187,402,403,
463,461,806,801,1005,983,1110,1058,1901,1933,2031,1823]} 1. e4 {[%emt 0:00:05]}
c5 {[%emt 0:00:08]} 2. Nf3 {[%emt 0:00:07]} Nc6 {[%emt 0:00:03]} 3. d4 {
[%emt 0:00:04]} cxd4 {[%emt 0:00:03]} 4. Nxd4 {[%emt 0:00:06]} Nf6 {[%emt 0:00:
00]} 5. Nc3 {[%emt 0:00:08]} e5 {[%emt 0:00:01]} 6. Ndb5 {[%emt 0:00:09]} d6 {
[%emt 0:00:03]} 7. Nd5 {[%emt 0:00:33]} Nxd5 {[%emt 0:00:05]} 8. exd5 {[%emt 0:
00:00]} Nb8 {[%emt 0:00:06]} 9. a4 {[%emt 0:00:21]} Be7 {[%emt 0:01:36]} 10.
Be2 {[%emt 0:00:06]} O-O {[%emt 0:01:35]} 11. Bd2 {[%emt 0:00:07] B33:
Sicilian: Pelikan and Sveshnikov Variations.} a6 {[%emt 0:02:55]} 12. Na3 {
[%emt 0:00:05]} a5 {[%emt 0:00:03]} 13. Bb5 {[%emt 0:00:04] The position is
equal.} f5 {[%emt 0:09:37]} 14. Qe2 {[%emt 0:06:07]} Nd7 {[%emt 0:14:38] [#]}
15. Nc4 $146 {[%emt 0:00:31]} ({Predecessor:} 15. O-O-O Nc5 16. f4 Bf6 17. fxe5
dxe5 18. Be3 b6 19. Nc4 Rb8 20. Nxa5 bxa5 21. Bxc5 {1-0 (27) Anand,V (2765)
-Baron,T (2531) Douglas 2019}) 15... Nc5 {[%emt 0:13:31]} 16. Be3 {[%emt 0:00:
00]} Qc7 {[%emt 0:06:29] [#]} (16... b6 $11 {remains equal.}) 17. f4 $1 $16 {
[%emt 0:01:23] Threatens to win with fxe5.} e4 {[%emt 0:06:15]} 18. O-O-O {
[%emt 0:08:24]} Bd7 {[%emt 0:06:11]} 19. Bxd7 {[%emt 0:01:12]} Nxd7 {[%emt 0:
00:00]} 20. Na3 {[%emt 0:04:08]} Rac8 {[%emt 0:03:23]} 21. Kb1 {[%emt 0:03:30]}
Nc5 {[%emt 0:05:08]} 22. Nb5 {[%emt 0:03:04]} Qd7 {[%emt 0:01:22]} 23. b3 {
[%emt 0:01:12]} Bf6 {[%emt 0:00:09]} 24. h3 {[%emt 0:08:22]} Na6 {[%emt 0:00:
00]} 25. g4 {[%emt 0:03:30]} Nc7 {[%emt 0:00:57]} 26. Nxc7 {[%emt 0:08:27]}
Qxc7 {[%emt 0:01:33]} 27. c4 {[%emt 0:00:32]} b5 {[%emt 0:06:29] A mistake
that costs the game.} (27... Bc3 $14) 28. axb5 $18 {[%emt 0:07:40][%cal Ya4b5,
Yb5b6]} a4 {[%emt 0:00:09]} 29. b6 {[%emt 0:00:03]} (29. bxa4 Qa5 30. Bd4 Qxa4
$17) 29... Qb7 {[%emt 0:05:58] [#]} 30. b4 {[%emt 0:00:08] c5 is the strong
threat.} ({Don't blunder} 30. bxa4 $2 Qa6 31. Bd4 (31. g5 Rxc4 32. Bd4 Rb4+ 33.
Qb2 Rxb2+ $19) 31... Rxc4 32. Bxf6 (32. Qb2 $2 Qxa4 33. Bxf6 gxf6 $19) 32...
gxf6 $19) 30... Qa6 {[%emt 0:00:45]} 31. Rc1 {[%emt 0:00:29] aiming for Rc2.}
a3 $2 {[%emt 0:00:13]} (31... Rb8 32. Rc2 (32. gxf5 Bd8 $16) 32... Rxb6 33.
Bxb6 Qxb6) 32. Ka2 {[%emt 0:01:09]} Rb8 {[%emt 0:04:10]} 33. Rc2 {[%emt 0:00:
00] White is clearly winning.} Rfc8 {[%emt 0:04:06]} (33... Rxb6 $142 34. Bxb6
Qxb6) 34. c5 {[%emt 0:02:38][%cal Yc4c5,Yc5c6]} Qa4 {[%emt 0:00:00]} 35. c6 {
[%emt 0:01:15]} Qxb4 {[%emt 0:00:07]} 36. Rb1 {[%emt 0:01:21]} Bb2 {[%emt 0:00:
05]} 37. Qa6 {[%emt 0:03:29] Active counter play!} Rf8 {[%emt 0:00:00]} 38. b7
{[%emt 0:01:05] Weighted Error Value: White=0.04 (flawless) / Black=0.28 
(precise)} 1-0

[Event "44th Chess Olympiad Open 2022"]
[Site "Chennai"]
[Date "2022.08.02"]
[Round "5.6"]
[White "Almeida Quintana, Omar"]
[Black "Abasov, Nijat"]
[Result "1/2-1/2"]
[WhiteElo "2523"]
[BlackElo "2633"]
[Annotator "TA"]
[PlyCount "151"]
[EventDate "2022.??.??"]
[TimeControl "60"]

{[%evp 14,151,27,1,5,0,11,14,19,19,19,8,27,32,37,26,67,79,62,64,124,125,111,77,
65,64,66,42,76,68,107,108,129,136,127,105,106,112,110,76,78,79,77,77,92,77,116,
115,100,104,120,136,129,116,130,111,249,236,335,328,517,508,495,493,458,358,
358,343,350,350,350,346,346,323,312,263,363,363,363,359,131,136,122,132,394,
394,394,401,394,394,394,394,394,394,1328,1206,1014,1003,875,384,384,384,609,
602,785,16,16,0,0,0,0,0,0,0,0,0,0,0,0,0,0,0,0,0,0,0,0,0,0,0,0,0,0,0,0,0,10,10,
22,0]} 1. d4 {[%emt 0:00:10]} d5 {[%emt 0:00:23]} 2. Nf3 {[%emt 0:00:08]} Nf6 {
[%emt 0:00:09]} 3. c4 {[%emt 0:00:18]} e6 {[%emt 0:00:11]} 4. Nc3 {[%emt 0:00:
00]} c5 {[%emt 0:00:09]} 5. cxd5 {[%emt 0:02:24]} cxd4 {[%emt 0:00:37]} 6. Qa4+
{[%emt 0:01:43]} Bd7 {[%emt 0:00:55]} 7. Qxd4 {[%emt 0:00:08]} exd5 {[%emt 0:
00:00]} 8. Bg5 {[%emt 0:00:17] White wants to play Bxf6.} (8. Nxd5 $5 {[%cal
Rd4e5]} Qa5+ 9. Nc3 $11) 8... Nc6 {[%emt 0:00:55] D41: Queen's Gambit Declined:
Semi-Tarrasch with 5 cxd5.} 9. Qd2 {[%emt 0:08:32]} Be6 {[%emt 0:07:58]
Strongly threatening ...d4.} 10. e3 {[%emt 0:03:19] Against d4} h6 {[%emt 0:00:
00]} 11. Bxf6 {[%emt 0:02:37]} Qxf6 {[%emt 0:00:36]} 12. Bb5 {[%emt 0:02:20] 
[#]} Bb4 $146 {[%emt 0:07:04]} ({Predecessor:} 12... Bc5 13. Nxd5 Bxd5 14. Qxd5
Bb4+ 15. Kf1 O-O 16. Bxc6 bxc6 17. Qd4 Qe7 18. a3 Bd6 19. Ke2 Rfd8 20. Qc3 Qb7
21. Rhd1 Be7 22. Nd4 {½-½ (64) Vaarala,E (1964)-Porte,H (2115) Helsingor 2009
}) 13. Rc1 {[%emt 0:04:56]} a6 {[%emt 0:08:39]} 14. a3 {[%emt 0:07:21]} Ba5 {
[%emt 0:05:14]} 15. Bxc6+ {[%emt 0:05:39]} bxc6 {[%emt 0:00:20]} 16. b4 {
[%emt 0:07:25]} Bc7 {[%emt 0:07:18]} ({Black should try} 16... Bd8 $14) 17. Nd4
$16 {[%emt 0:05:42]} Qg6 {[%emt 0:03:05]} 18. f4 {[%emt 0:10:30]} (18. O-O {
seems wilder.} Bd7 19. Nxd5 Bxh2+ 20. Kxh2 cxd5 21. Rc5) 18... Bd7 {[%emt 0:00:
00] [#]} 19. Nxd5 $1 {[%emt 0:04:38]} Bd8 {[%emt 0:00:08]} 20. Nc3 {[%emt 0:00:
00] White is much more active. The black rooks are badly placed. Pair of
Knights!} (20. f5 $5 Qd6 21. Nf4 $14) 20... a5 {[%emt 0:05:03]} 21. Nf3 {
[%emt 0:08:57] Prevents Bh4+.} Qe6 {[%emt 0:06:06]} 22. Na4 {[%emt 0:04:13]}
Be7 {[%emt 0:09:44]} 23. Nc5 {[%emt 0:04:52]} Bxc5 {[%emt 0:00:10]} 24. Rxc5 {
[%emt 0:00:11]} O-O {[%emt 0:01:45]} 25. O-O {[%emt 0:01:49]} axb4 {[%emt 0:00:
00]} 26. Re5 {[%emt 0:02:10]} Qb3 {[%emt 0:00:06][%cal Yb4a3]} 27. axb4 {
[%emt 0:05:21]} Rfd8 {[%emt 0:00:08]} 28. Nd4 {[%emt 0:00:22]} Qa3 {[%emt 0:00:
00][%cal Yd7e6]} 29. Rb1 {[%emt 0:03:01][%cal Yf1b1,Yb1b3,Yb3a3,Ya3a7]} Rab8 {
[%emt 0:02:25]} 30. h3 {[%emt 0:01:45]} Re8 {[%emt 0:04:08]} 31. Rxe8+ {
[%emt 0:00:57]} Rxe8 {[%emt 0:00:22]} 32. Rb3 {[%emt 0:00:30]} Qa7 {[%emt 0:00:
00]} 33. Qc3 {[%emt 0:00:09] Prevents c5.} Qb7 {[%emt 0:02:07]} 34. Qc5 {
[%emt 0:01:08]} Be6 {[%emt 0:01:46]} (34... Ra8 $16 35. Kh2 Kh7) 35. Ra3 $18 {
[%emt 0:00:43] Hoping for Ra7.} Bd5 {[%emt 0:00:02]} (35... Qd7 {was worth a
try.} 36. Ra7 Qd8 37. Qxc6 Bd5) 36. Ra7 {[%emt 0:00:51]} Qc8 {[%emt 0:00:48]} (
36... Qb8 $142 37. Nxc6 Bxc6) 37. b5 $1 {[%emt 0:00:18]} Rxe3 {[%emt 0:00:24]}
38. Nxc6 {[%emt 0:00:35] White wants to mate with Ne7+.} Re1+ {[%emt 0:01:19]}
39. Kf2 {[%emt 0:00:54]} Qe6 {[%emt 0:00:37]} 40. Ne7+ {[%emt 0:00:29]} Kh7 {
[%emt 0:00:02] ( -> ...Qe2+)} 41. Nxd5 {[%emt 0:02:46]} Re2+ {[%emt 0:00:30]}
42. Kg1 {[%emt 0:03:23]} Qe4 {[%emt 0:00:32][%csl Ge2][%cal Re4g2] [#]} 43. Ne3
{[%emt 0:00:30]} Rxe3 {[%emt 0:00:12]} 44. Rxf7 {[%emt 0:02:13]} Rxh3 {[%emt 0:
00:00]} 45. gxh3 {[%emt 0:05:46]} Qg6+ {[%emt 0:00:17]} 46. Kf2 {[%emt 0:00:18]
} Qxf7 {[%emt 0:00:07] Endgame KQ-KQ} 47. Qb4 {[%emt 0:05:18]} Qa2+ {[%emt 0:
03:08]} 48. Ke3 {[%emt 0:00:00] Threatens to win with b6.} Qh2 $2 {[%emt 0:00:
07]} (48... Kh8 $16 {might work better.} 49. b6 Qe6+ 50. Kd4 (50. Kf2 Qxh3 51.
Qb5 Qh4+ 52. Ke2 Qg4+ 53. Ke3 Qg1+ 54. Ke4 Qg2+ 55. Ke5 Qb7 $18) 50... Qf6+ 51.
Kd3 Qf5+ 52. Ke2 Qh5+ 53. Kf2 Qxh3) 49. Qe4+ {[%emt 0:00:00]} Kh8 {[%emt 0:00:
18]} 50. Kd4 $1 {[%emt 0:00:43]} Qb2+ {[%emt 0:05:28]} 51. Kc4 {[%emt 0:00:58]}
Qa2+ {[%emt 0:00:28]} 52. Kc5 {[%emt 0:01:23] Black must now prevent b6.} Qa3+
{[%emt 0:00:18]} 53. Kb6 $1 {[%emt 0:00:22]} Qxh3 {[%emt 0:01:27]} (53... Qd6+
54. Ka7 Qd7+ 55. Qb7 Qxh3) 54. Kc7 {[%emt 0:01:38]} Qc3+ {[%emt 0:01:46]} 55.
Kb7 $1 {[%emt 0:00:25]} g5 {[%emt 0:03:39]} 56. Qe8+ {[%emt 0:05:00]} (56. Qe5+
$142 Qxe5 57. fxe5) 56... Kh7 {[%emt 0:02:16]} 57. fxg5 $1 {[%emt 0:01:13]}
Qg7+ {[%emt 0:00:03] [#]} (57... hxg5 $142 58. Qh5+ Kg8 59. Qxg5+ Kf7) 58. Kc8
$1 {[%emt 0:00:09] Qd7 would kill now.} hxg5 {[%emt 0:00:16] [#]} 59. b6 $2 {
[%emt 0:01:00]} (59. Qe4+ $1 $18 Kh6 60. b6 Qg8+ 61. Kd7 Qg7+ 62. Ke8 Qg8+ 63.
Ke7 Qg7+ 64. Ke8 Qh8+ 65. Kf7 Qg7+ 66. Ke8) 59... Qc3+ $11 {[%emt 0:02:02] The
position is equal.} 60. Kd8 $1 {[%emt 0:00:38]} (60. Kd7 Qd3+ 61. Kc8 Kh6 62.
Qe6+ Kh5 $18) 60... Qa5 $1 {[%emt 0:02:01]} 61. Qd7+ {[%emt 0:01:02]} (61. Kc7
$5 Kh6 62. Qe6+ Kh5 63. Kb8 $18) 61... Kh6 {[%emt 0:00:57]} 62. Kc7 {[%emt 0:
01:12]} Kh5 {[%emt 0:00:03]} 63. Qh3+ {[%emt 0:00:19]} Kg6 {[%emt 0:00:04]} 64.
Qf3 {[%emt 0:00:53]} Qe5+ {[%emt 0:00:00]} 65. Kc6 $1 {[%emt 0:00:39] aiming
for Qd5.} Qe8+ {[%emt 0:02:39]} 66. Kc5 $1 {[%emt 0:00:42] White threatens
Qc6+ and mate.} Qe7+ $1 {[%emt 0:00:02]} 67. Kb5 {[%emt 0:00:16]} Qe5+ {
[%emt 0:00:03]} 68. Ka6 {[%emt 0:00:25] And now Qc6+ would win.} Qa1+ {[%emt 0:
00:19]} 69. Kb7 {[%emt 0:00:15]} Qd4 {[%emt 0:00:00] Prevents Qd5.} 70. Qc6+ {
[%emt 0:01:06]} Kh5 $1 {[%emt 0:00:05]} 71. Kc8 {[%emt 0:00:18] b7 is the
strong threat.} Qh8+ {[%emt 0:00:39]} 72. Kc7 {[%emt 0:00:26] Threatening mate
with Qh1+.} Qg7+ {[%emt 0:00:58]} 73. Qd7 {[%emt 0:00:15]} Qc3+ {[%emt 0:00:47]
} 74. Qc6 {[%emt 0:01:02]} Qg7+ {[%emt 0:00:00]} 75. Kd8 {[%emt 0:00:33]} Qd4+
$1 {[%emt 0:00:06]} 76. Kc7 {[%emt 0:00:00] Black defended with fortune.
Weighted Error Value: White=0.24 (precise) / Black=0.30} 1/2-1/2